[Event "*** SCC Grand Prix: Titled Tuesday Blitz"]
[Site "Chess.com"]
[Date "2020.06.23"]
[Round "1"]
[White "mr65"]
[Black "ENEASZ"]
[Result "0-1"]
[WhiteElo "2097"]
[BlackElo "2507"]
[TimeControl "180+1"]
[EndTime "10:05:44 PDT"]
[Termination "ENEASZ won on time"]

1. e4 {[%clk 0:02:58.4]} 1... d6 {[%clk 0:02:58.9]} 2. Nc3 {[%clk 0:02:56.2]}
2... Nf6 {[%clk 0:02:57.4]} 3. Nf3 {[%clk 0:02:55.7]} 3... e5 {[%clk 0:02:56.2]}
4. d4 {[%clk 0:02:53.9]} 4... Nbd7 {[%clk 0:02:56.2]} 5. Bc4 {[%clk 0:02:51.9]}
5... Be7 {[%clk 0:02:55.9]} 6. O-O {[%clk 0:02:50.2]} 6... O-O {[%clk
0:02:55.7]} 7. a4 {[%clk 0:02:48]} 7... c6 {[%clk 0:02:55.5]} 8. Be3 {[%clk
0:02:37.4]} 8... b6 {[%clk 0:02:50.5]} 9. h3 {[%clk 0:02:34.9]} 9... a6 {[%clk
0:02:41.5]} 10. Bb3 {[%clk 0:02:32.5]} 10... Rb8 {[%clk 0:02:40.3]} 11. dxe5
{[%clk 0:02:23.9]} 11... dxe5 {[%clk 0:02:37.3]} 12. Re1 {[%clk 0:02:12.3]}
12... Qc7 {[%clk 0:02:31.1]} 13. Qe2 {[%clk 0:02:02.6]} 13... Nc5 {[%clk
0:02:29.4]} 14. Bxc5 {[%clk 0:01:59.5]} 14... Bxc5 {[%clk 0:02:28.2]} 15. Red1
{[%clk 0:01:46.8]} 15... b5 {[%clk 0:02:25.8]} 16. axb5 {[%clk 0:01:45]} 16...
axb5 {[%clk 0:02:26.7]} 17. Ra2 {[%clk 0:01:11.9]} 17... h6 {[%clk 0:02:23]} 18.
Rda1 {[%clk 0:01:05.9]} 18... Re8 {[%clk 0:02:19.1]} 19. Ra8 {[%clk 0:01:00.6]}
19... Rxa8 {[%clk 0:02:15.1]} 20. Rxa8 {[%clk 0:00:59.5]} 20... Qb7 {[%clk
0:02:15.6]} 21. Ra1 {[%clk 0:00:57.2]} 21... Kh7 {[%clk 0:02:14.9]} 22. Rd1
{[%clk 0:00:52.7]} 22... g6 {[%clk 0:02:12.7]} 23. Kf1 {[%clk 0:00:44.8]} 23...
Kg7 {[%clk 0:02:12.5]} 24. h4 {[%clk 0:00:43]} 24... Nh5 {[%clk 0:02:12.2]} 25.
Qd2 {[%clk 0:00:36.7]} 25... Bg4 {[%clk 0:02:09.8]} 26. Ne2 {[%clk 0:00:28.3]}
26... Qa7 {[%clk 0:02:07]} 27. Ng3 {[%clk 0:00:25.2]} 27... Nf4 {[%clk 0:02:07]}
28. Nh2 {[%clk 0:00:19.2]} 28... Bxd1 {[%clk 0:02:06.1]} 29. Qxd1 {[%clk
0:00:17.5]} 29... Bxf2 {[%clk 0:02:06.1]} 30. Nh1 {[%clk 0:00:15.7]} 30... Bxh4
{[%clk 0:02:06]} 31. g3 {[%clk 0:00:12.1]} 31... Qe3 {[%clk 0:02:05.7]} 32. gxf4
{[%clk 0:00:08.6]} 32... Qxf4+ {[%clk 0:01:57.8]} 33. Nf3 {[%clk 0:00:07.7]}
33... Qxe4 {[%clk 0:01:56.8]} 34. c3 {[%clk 0:00:04.6]} 34... Rd8 {[%clk
0:01:55.1]} 0-1

[Event "*** SCC Grand Prix: Titled Tuesday Blitz"]
[Site "Chess.com"]
[Date "2020.06.23"]
[Round "1"]
[White "dawtonlms"]
[Black "maciek_92"]
[Result "1/2-1/2"]
[WhiteElo "2382"]
[BlackElo "2713"]
[TimeControl "180+1"]
[EndTime "10:05:48 PDT"]
[Termination "Game drawn by repetition"]

1. e4 {[%clk 0:03:00.9]} 1... c5 {[%clk 0:02:59.9]} 2. Nf3 {[%clk 0:03:00.5]}
2... Nc6 {[%clk 0:02:59.7]} 3. Bb5 {[%clk 0:02:59.8]} 3... e6 {[%clk 0:02:58.9]}
4. O-O {[%clk 0:02:58.3]} 4... Nge7 {[%clk 0:02:58.8]} 5. Re1 {[%clk 0:02:58.1]}
5... a6 {[%clk 0:02:58.2]} 6. Bf1 {[%clk 0:02:58]} 6... d5 {[%clk 0:02:50]} 7.
d3 {[%clk 0:02:48.3]} 7... g6 {[%clk 0:02:46.5]} 8. Nc3 {[%clk 0:02:41.6]} 8...
Bg7 {[%clk 0:02:45.5]} 9. Bg5 {[%clk 0:02:32.9]} 9... h6 {[%clk 0:02:30.6]} 10.
Bh4 {[%clk 0:02:24.1]} 10... O-O {[%clk 0:02:29.5]} 11. exd5 {[%clk 0:02:23]}
11... exd5 {[%clk 0:02:28.9]} 12. Nxd5 {[%clk 0:02:08]} 12... Qxd5 {[%clk
0:02:26.3]} 13. Bxe7 {[%clk 0:02:07.3]} 13... Nxe7 {[%clk 0:02:27.2]} 14. Rxe7
{[%clk 0:02:06.9]} 14... Be6 {[%clk 0:02:27.6]} 15. c4 {[%clk 0:01:29.2]} 15...
Qc6 {[%clk 0:02:24.2]} 16. d4 {[%clk 0:01:28.9]} 16... Bf6 {[%clk 0:01:56.5]}
17. d5 {[%clk 0:01:24.6]} 17... Qd6 {[%clk 0:01:54.7]} 18. Rxb7 {[%clk 0:01:23]}
18... Bc8 {[%clk 0:01:50.4]} 19. Rb3 {[%clk 0:01:22.3]} 19... Re8 {[%clk
0:01:45.5]} 20. Qd2 {[%clk 0:01:21.9]} 20... Kg7 {[%clk 0:01:38.1]} 21. Re1
{[%clk 0:01:21.1]} 21... Rxe1 {[%clk 0:01:30.8]} 22. Qxe1 {[%clk 0:01:21.1]}
22... Bg4 {[%clk 0:01:29.9]} 23. Qe4 {[%clk 0:01:17.9]} 23... Bf5 {[%clk
0:01:28.6]} 24. Qe3 {[%clk 0:01:17.1]} 24... Bd7 {[%clk 0:01:22.7]} 25. Qd2
{[%clk 0:01:06.3]} 25... Re8 {[%clk 0:01:18.5]} 26. Re3 {[%clk 0:01:05.7]} 26...
Rb8 {[%clk 0:01:16.4]} 27. b3 {[%clk 0:01:04.8]} 27... g5 {[%clk 0:01:05.3]} 28.
h3 {[%clk 0:01:02.4]} 28... Ra8 {[%clk 0:01:02]} 29. Qa5 {[%clk 0:00:47.2]}
29... Bd8 {[%clk 0:00:58]} 30. Qc3+ {[%clk 0:00:46.9]} 30... Bf6 {[%clk
0:00:58.6]} 31. Qa5 {[%clk 0:00:44.1]} 31... Bd8 {[%clk 0:00:58.2]} 32. Qc3+
{[%clk 0:00:38.4]} 32... Bf6 {[%clk 0:00:56.2]} 33. Qa5 {[%clk 0:00:37.9]}
1/2-1/2

[Event "*** SCC Grand Prix: Titled Tuesday Blitz"]
[Site "Chess.com"]
[Date "2020.06.23"]
[Round "1"]
[White "rasmussvane"]
[Black "Alopekos"]
[Result "1-0"]
[WhiteElo "2899"]
[BlackElo "2448"]
[TimeControl "180+1"]
[EndTime "10:05:49 PDT"]
[Termination "rasmussvane won by resignation"]

1. Nf3 {[%clk 0:02:59]} 1... c5 {[%clk 0:02:59.7]} 2. c4 {[%clk 0:02:58.6]} 2...
d6 {[%clk 0:02:57.6]} 3. d4 {[%clk 0:02:54.2]} 3... cxd4 {[%clk 0:02:56.8]} 4.
Nxd4 {[%clk 0:02:55.1]} 4... Nf6 {[%clk 0:02:55.8]} 5. Nc3 {[%clk 0:02:53.9]}
5... g6 {[%clk 0:02:55.6]} 6. g3 {[%clk 0:02:54]} 6... Bg7 {[%clk 0:02:56.1]} 7.
Bg2 {[%clk 0:02:54.5]} 7... O-O {[%clk 0:02:56.7]} 8. O-O {[%clk 0:02:55.1]}
8... Nc6 {[%clk 0:02:37.4]} 9. Nxc6 {[%clk 0:02:51.8]} 9... bxc6 {[%clk
0:02:38.3]} 10. Bxc6 {[%clk 0:02:52.3]} 10... Rb8 {[%clk 0:02:38.2]} 11. Bg2
{[%clk 0:02:47.6]} 11... Be6 {[%clk 0:02:37.8]} 12. b3 {[%clk 0:02:31.2]} 12...
Nd7 {[%clk 0:02:15.3]} 13. Bd2 {[%clk 0:02:12.1]} 13... Nc5 {[%clk 0:02:07.8]}
14. Rc1 {[%clk 0:02:08.7]} 14... a5 {[%clk 0:02:04.1]} 15. Nb5 {[%clk
0:01:52.2]} 15... Bd7 {[%clk 0:01:55.6]} 16. a4 {[%clk 0:01:46.1]} 16... e6
{[%clk 0:01:34.3]} 17. Bf4 {[%clk 0:01:39.8]} 17... d5 {[%clk 0:01:24.8]} 18.
Bxb8 {[%clk 0:01:38.3]} 18... Qxb8 {[%clk 0:01:22.3]} 19. cxd5 {[%clk
0:01:38.5]} 19... exd5 {[%clk 0:01:22]} 20. Rxc5 {[%clk 0:01:37.3]} 20... d4
{[%clk 0:01:18.6]} 21. Nxd4 {[%clk 0:01:26.2]} 21... Be6 {[%clk 0:01:07.6]} 22.
Nxe6 {[%clk 0:01:25.4]} 22... fxe6 {[%clk 0:01:08.5]} 23. Qd7 {[%clk 0:01:21.2]}
23... Qxb3 {[%clk 0:01:06.8]} 24. Bh3 {[%clk 0:01:18.9]} 24... Qb4 {[%clk
0:00:56]} 25. Rc7 {[%clk 0:01:13.3]} 25... Qb2 {[%clk 0:00:53]} 26. Bxe6+ {[%clk
0:01:09]} 26... Kh8 {[%clk 0:00:52.2]} 27. Rc8 {[%clk 0:01:09.3]} 27... Qf6
{[%clk 0:00:49]} 28. Rxf8+ {[%clk 0:01:08.1]} 28... Qxf8 {[%clk 0:00:49.9]} 29.
Rc1 {[%clk 0:01:07.4]} 29... Qf6 {[%clk 0:00:42.8]} 30. Rc8+ {[%clk 0:01:03.4]}
30... Bf8 {[%clk 0:00:43.2]} 31. Rxf8+ {[%clk 0:00:49.4]} 31... Qxf8 {[%clk
0:00:42.8]} 32. Qd4+ {[%clk 0:00:49.9]} 1-0

[Event "*** SCC Grand Prix: Titled Tuesday Blitz"]
[Site "Chess.com"]
[Date "2020.06.23"]
[Round "1"]
[White "GuerrieroFromLevant"]
[Black "Chepaschess"]
[Result "0-1"]
[WhiteElo "2414"]
[BlackElo "2813"]
[TimeControl "180+1"]
[EndTime "10:05:49 PDT"]
[Termination "Chepaschess won by resignation"]

1. e4 {[%clk 0:03:00.9]} 1... d5 {[%clk 0:02:58.4]} 2. exd5 {[%clk 0:02:59.9]}
2... Qxd5 {[%clk 0:02:59.3]} 3. Nc3 {[%clk 0:02:59.5]} 3... Qd6 {[%clk
0:02:59.9]} 4. Bc4 {[%clk 0:02:57.1]} 4... Nf6 {[%clk 0:02:58.5]} 5. d4 {[%clk
0:02:55]} 5... a6 {[%clk 0:02:56.8]} 6. Nf3 {[%clk 0:02:53.3]} 6... b5 {[%clk
0:02:45.1]} 7. Bb3 {[%clk 0:02:52.8]} 7... e6 {[%clk 0:02:40.9]} 8. O-O {[%clk
0:02:52.1]} 8... Be7 {[%clk 0:02:39.9]} 9. Ne5 {[%clk 0:02:37]} 9... Bb7 {[%clk
0:02:37.7]} 10. Bf4 {[%clk 0:02:31.9]} 10... c5 {[%clk 0:02:26.2]} 11. Ng6
{[%clk 0:01:55.8]} 11... Qxd4 {[%clk 0:02:26]} 12. Nxh8 {[%clk 0:01:56]} 12...
Qxf4 {[%clk 0:02:22.7]} 13. a4 {[%clk 0:01:42.4]} 13... c4 {[%clk 0:02:21.9]}
14. Ba2 {[%clk 0:01:41.9]} 14... b4 {[%clk 0:02:19.4]} 15. Ne2 {[%clk
0:01:42.1]} 15... Qg5 {[%clk 0:02:18.4]} 16. Ng3 {[%clk 0:01:39.8]} 16... Nc6
{[%clk 0:02:16.4]} 17. Bxc4 {[%clk 0:01:37.8]} 17... Ne5 {[%clk 0:02:13.2]} 18.
f4 {[%clk 0:01:32.5]} 18... Bc5+ {[%clk 0:02:02.4]} 19. Kh1 {[%clk 0:01:28.3]}
19... Qh4 {[%clk 0:02:02.8]} 20. fxe5 {[%clk 0:00:56.7]} 20... Ng4 {[%clk
0:02:02]} 21. Qxg4 {[%clk 0:00:56.9]} 21... Qxg4 {[%clk 0:02:02.9]} 22. Be2
{[%clk 0:00:57.3]} 22... Qh3 {[%clk 0:01:57.1]} 23. Bf3 {[%clk 0:00:55.7]} 23...
Bxf3 {[%clk 0:01:57.3]} 24. Rxf3 {[%clk 0:00:56.2]} 24... Qg4 {[%clk 0:01:53.9]}
25. Nxf7 {[%clk 0:00:56.3]} 25... Rc8 {[%clk 0:01:49.4]} 26. Raf1 {[%clk
0:00:54.2]} 26... Qg6 {[%clk 0:01:45.6]} 27. Ne2 {[%clk 0:00:43.8]} 27... Ke7
{[%clk 0:01:40.5]} 28. h4 {[%clk 0:00:39.5]} 28... Qxc2 {[%clk 0:01:34.7]} 29.
Ng3 {[%clk 0:00:27.5]} 29... Rf8 {[%clk 0:01:30.3]} 30. Ng5 {[%clk 0:00:24.4]}
30... Rxf3 {[%clk 0:01:27]} 31. Rxf3 {[%clk 0:00:25.3]} 31... h6 {[%clk
0:01:21.6]} 32. N5e4 {[%clk 0:00:22.9]} 32... Qxb2 {[%clk 0:01:21.8]} 33. Nxc5
{[%clk 0:00:20.6]} 33... Qc1+ {[%clk 0:01:22]} 34. Nf1 {[%clk 0:00:20.1]} 34...
Qxc5 {[%clk 0:01:22.2]} 0-1

[Event "*** SCC Grand Prix: Titled Tuesday Blitz"]
[Site "Chess.com"]
[Date "2020.06.23"]
[Round "1"]
[White "Maksimus1998"]
[Black "MuhittinBuker"]
[Result "1-0"]
[WhiteElo "2476"]
[BlackElo "1905"]
[TimeControl "180+1"]
[EndTime "10:05:49 PDT"]
[Termination "Maksimus1998 won on time"]

1. e4 {[%clk 0:03:00.9]} 1... e5 {[%clk 0:02:58.3]} 2. Nf3 {[%clk 0:03:00.5]}
2... Nc6 {[%clk 0:02:57.5]} 3. Bb5 {[%clk 0:03:00.4]} 3... a6 {[%clk 0:02:56.1]}
4. Ba4 {[%clk 0:02:58.3]} 4... Nf6 {[%clk 0:02:55.1]} 5. O-O {[%clk 0:02:57.6]}
5... Be7 {[%clk 0:02:54.1]} 6. Bxc6 {[%clk 0:02:56.9]} 6... dxc6 {[%clk
0:02:50.8]} 7. d3 {[%clk 0:02:56.9]} 7... Nd7 {[%clk 0:02:34.3]} 8. Nbd2 {[%clk
0:02:55.5]} 8... O-O {[%clk 0:02:32.3]} 9. b3 {[%clk 0:02:55.5]} 9... Bf6 {[%clk
0:02:30.9]} 10. Bb2 {[%clk 0:02:55.4]} 10... Re8 {[%clk 0:02:31.1]} 11. Nc4
{[%clk 0:02:55.2]} 11... c5 {[%clk 0:02:24.9]} 12. a4 {[%clk 0:02:53.7]} 12...
b6 {[%clk 0:01:45.8]} 13. h3 {[%clk 0:02:48.7]} 13... Bb7 {[%clk 0:01:43.7]} 14.
Qd2 {[%clk 0:02:34.5]} 14... g6 {[%clk 0:01:29.8]} 15. Nh2 {[%clk 0:02:29]}
15... Bg7 {[%clk 0:01:20.3]} 16. f4 {[%clk 0:02:28]} 16... f6 {[%clk 0:01:03.6]}
17. fxe5 {[%clk 0:02:26.2]} 17... Nxe5 {[%clk 0:00:56.9]} 18. Nxe5 {[%clk
0:02:25.5]} 18... fxe5 {[%clk 0:00:55.6]} 19. Qe3 {[%clk 0:02:17.6]} 19... Qe7
{[%clk 0:00:50.8]} 20. Ng4 {[%clk 0:02:14.5]} 20... Rf8 {[%clk 0:00:46.7]} 21.
Qg3 {[%clk 0:02:14.3]} 21... Rae8 {[%clk 0:00:40.6]} 22. Rxf8+ {[%clk
0:02:13.6]} 22... Kxf8 {[%clk 0:00:37.5]} 23. Rf1+ {[%clk 0:02:10.2]} 23... Kg8
{[%clk 0:00:33.5]} 24. Bc1 {[%clk 0:02:01.4]} 24... Bc8 {[%clk 0:00:28.2]} 25.
Nh6+ {[%clk 0:02:00.1]} 25... Bxh6 {[%clk 0:00:26.4]} 26. Bxh6 {[%clk 0:02:01]}
26... Bd7 {[%clk 0:00:22.1]} 27. Bg5 {[%clk 0:01:51.8]} 27... Qd6 {[%clk
0:00:17.3]} 28. Qh4 {[%clk 0:01:46.1]} 28... Rf8 {[%clk 0:00:13.7]} 29. Rxf8+
{[%clk 0:01:36.6]} 29... Qxf8 {[%clk 0:00:12]} 30. Bf6 {[%clk 0:01:37.2]} 30...
Qd6 {[%clk 0:00:05.4]} 31. Qg5 {[%clk 0:01:37.3]} 1-0

[Event "*** SCC Grand Prix: Titled Tuesday Blitz"]
[Site "Chess.com"]
[Date "2020.06.23"]
[Round "1"]
[White "GeorgMeier"]
[Black "PlotnikovPavel"]
[Result "1-0"]
[WhiteElo "2904"]
[BlackElo "2449"]
[TimeControl "180+1"]
[EndTime "10:05:51 PDT"]
[Termination "GeorgMeier won by resignation"]

1. Nf3 {[%clk 0:02:44.4]} 1... e6 {[%clk 0:02:59.1]} 2. e4 {[%clk 0:02:43.9]}
2... d5 {[%clk 0:02:58.5]} 3. exd5 {[%clk 0:02:44.8]} 3... exd5 {[%clk
0:02:58.5]} 4. d4 {[%clk 0:02:45.7]} 4... Bd6 {[%clk 0:02:58.4]} 5. Bd3 {[%clk
0:02:44.6]} 5... Ne7 {[%clk 0:02:56.5]} 6. O-O {[%clk 0:02:43.4]} 6... O-O
{[%clk 0:02:56.3]} 7. Re1 {[%clk 0:02:43.4]} 7... Bf5 {[%clk 0:02:53.2]} 8. Bg5
{[%clk 0:02:41.8]} 8... f6 {[%clk 0:02:52.8]} 9. Bh4 {[%clk 0:02:41.6]} 9...
Bxd3 {[%clk 0:02:35.7]} 10. Qxd3 {[%clk 0:02:42.5]} 10... c6 {[%clk 0:02:30.8]}
11. Nbd2 {[%clk 0:02:36.5]} 11... Nd7 {[%clk 0:02:14.6]} 12. Re6 {[%clk
0:02:33.9]} 12... Nb6 {[%clk 0:02:13.2]} 13. Rae1 {[%clk 0:02:33.2]} 13... Ng6
{[%clk 0:02:12.2]} 14. Bg3 {[%clk 0:02:31.7]} 14... Nf4 {[%clk 0:02:03.9]} 15.
Qe3 {[%clk 0:02:08.5]} 15... g5 {[%clk 0:01:51.1]} 16. Bxf4 {[%clk 0:01:47.5]}
16... Bxf4 {[%clk 0:01:50.3]} 17. Qd3 {[%clk 0:01:47.8]} 17... Rf7 {[%clk
0:01:46.5]} 18. Nf1 {[%clk 0:01:42.7]} 18... Nc4 {[%clk 0:01:41.7]} 19. b3
{[%clk 0:01:42.3]} 19... Nb6 {[%clk 0:01:32]} 20. g3 {[%clk 0:01:40.9]} 20...
Bd6 {[%clk 0:01:31]} 21. Ne3 {[%clk 0:01:40.6]} 21... Bf8 {[%clk 0:01:27.9]} 22.
h4 {[%clk 0:01:37.2]} 22... Bg7 {[%clk 0:01:13.2]} 23. Nf5 {[%clk 0:01:33.3]}
23... Nd7 {[%clk 0:01:11.1]} 24. Re8+ {[%clk 0:01:19.9]} 24... Qxe8 {[%clk
0:01:09.6]} 25. Rxe8+ {[%clk 0:01:20.8]} 25... Rxe8 {[%clk 0:01:09.7]} 26. Nd6
{[%clk 0:01:21.4]} 26... Rfe7 {[%clk 0:01:04.7]} 27. hxg5 {[%clk 0:01:18.3]}
27... fxg5 {[%clk 0:00:54]} 28. Nxe8 {[%clk 0:01:14]} 28... Rxe8 {[%clk
0:00:53.4]} 29. Nxg5 {[%clk 0:01:14.4]} 29... Nf6 {[%clk 0:00:53.6]} 30. Qf5
{[%clk 0:01:13]} 30... Re7 {[%clk 0:00:53.2]} 31. Ne6 {[%clk 0:01:13]} 31... Bh8
{[%clk 0:00:50.6]} 32. c4 {[%clk 0:01:13.2]} 32... Kf7 {[%clk 0:00:48.7]} 33.
cxd5 {[%clk 0:01:09]} 33... cxd5 {[%clk 0:00:47.9]} 34. Nf4 {[%clk 0:01:09.4]}
34... Rd7 {[%clk 0:00:41]} 35. g4 {[%clk 0:01:07]} 35... Kg8 {[%clk 0:00:38.4]}
36. g5 {[%clk 0:01:06.2]} 36... Ne4 {[%clk 0:00:38]} 37. Qxd7 {[%clk 0:01:05.5]}
1-0

[Event "*** SCC Grand Prix: Titled Tuesday Blitz"]
[Site "Chess.com"]
[Date "2020.06.23"]
[Round "1"]
[White "shnitez"]
[Black "gumimis"]
[Result "1-0"]
[WhiteElo "2522"]
[BlackElo "2139"]
[TimeControl "180+1"]
[EndTime "10:05:56 PDT"]
[Termination "shnitez won by resignation"]

1. d4 {[%clk 0:03:00.1]} 1... Nf6 {[%clk 0:02:59.2]} 2. c4 {[%clk 0:02:59.8]}
2... g6 {[%clk 0:02:47.1]} 3. Nc3 {[%clk 0:02:59.4]} 3... Bg7 {[%clk 0:02:47.5]}
4. e4 {[%clk 0:02:59.4]} 4... O-O {[%clk 0:02:47.6]} 5. Nf3 {[%clk 0:02:59.5]}
5... d6 {[%clk 0:02:45.4]} 6. Be2 {[%clk 0:02:59.4]} 6... Na6 {[%clk 0:02:45.4]}
7. O-O {[%clk 0:02:57.1]} 7... e5 {[%clk 0:02:45.2]} 8. d5 {[%clk 0:02:10.7]}
8... Nc5 {[%clk 0:02:44.4]} 9. Qc2 {[%clk 0:02:08]} 9... a5 {[%clk 0:02:43.5]}
10. b3 {[%clk 0:02:06.5]} 10... Ne8 {[%clk 0:02:40.8]} 11. Ne1 {[%clk 0:01:46]}
11... f5 {[%clk 0:02:40.6]} 12. f3 {[%clk 0:01:45.1]} 12... Nf6 {[%clk
0:02:37.6]} 13. Nd3 {[%clk 0:01:44.9]} 13... fxe4 {[%clk 0:02:17]} 14. Nxc5
{[%clk 0:01:44.5]} 14... exf3 {[%clk 0:02:17.2]} 15. Nxb7 {[%clk 0:01:40.2]}
15... Bxb7 {[%clk 0:02:03.2]} 16. Bxf3 {[%clk 0:01:39.2]} 16... Nd7 {[%clk
0:01:48.2]} 17. Ne4 {[%clk 0:01:35.9]} 17... Qe7 {[%clk 0:01:42.1]} 18. Bg5
{[%clk 0:01:34.5]} 18... Nf6 {[%clk 0:01:37.1]} 19. Bg4 {[%clk 0:01:32]} 19...
h6 {[%clk 0:01:35.2]} 20. Be6+ {[%clk 0:01:31.7]} 20... Kh7 {[%clk 0:01:33.9]}
21. Bh4 {[%clk 0:01:24.2]} 21... Kh8 {[%clk 0:01:30.4]} 22. Rf3 {[%clk
0:01:10.8]} 22... g5 {[%clk 0:01:29.7]} 23. Nxg5 {[%clk 0:01:01.5]} 23... hxg5
{[%clk 0:01:25.3]} 24. Bxg5 {[%clk 0:01:02.4]} 24... Qe8 {[%clk 0:01:04.6]} 25.
Raf1 {[%clk 0:01:00.2]} 25... Nh5 {[%clk 0:00:56.1]} 26. Rxf8+ {[%clk
0:00:52.1]} 26... Bxf8 {[%clk 0:00:55.7]} 27. Qf5 {[%clk 0:00:50]} 27... Bc8
{[%clk 0:00:43.7]} 28. Qxf8+ {[%clk 0:00:48.6]} 28... Qxf8 {[%clk 0:00:39.2]}
29. Rxf8+ {[%clk 0:00:49.5]} 29... Kg7 {[%clk 0:00:38.7]} 30. Rxc8 {[%clk
0:00:50.4]} 1-0

[Event "*** SCC Grand Prix: Titled Tuesday Blitz"]
[Site "Chess.com"]
[Date "2020.06.23"]
[Round "1"]
[White "Artem_Koval"]
[Black "Gareth-Bale11"]
[Result "1-0"]
[WhiteElo "2412"]
[BlackElo "2740"]
[TimeControl "180+1"]
[EndTime "10:05:57 PDT"]
[Termination "Artem_Koval won by resignation"]

1. e4 {[%clk 0:02:59]} 1... c6 {[%clk 0:02:59]} 2. Nc3 {[%clk 0:02:58.2]} 2...
d6 {[%clk 0:02:51.4]} 3. d4 {[%clk 0:02:56.2]} 3... Nd7 {[%clk 0:02:47.9]} 4.
Nf3 {[%clk 0:02:53.1]} 4... e5 {[%clk 0:02:43.4]} 5. Bc4 {[%clk 0:02:43.5]} 5...
Be7 {[%clk 0:02:42.9]} 6. O-O {[%clk 0:02:34.1]} 6... Ngf6 {[%clk 0:02:42]} 7.
a4 {[%clk 0:02:31]} 7... O-O {[%clk 0:02:40.8]} 8. h3 {[%clk 0:02:28.1]} 8...
Qc7 {[%clk 0:02:31.6]} 9. Bg5 {[%clk 0:02:16.6]} 9... h6 {[%clk 0:02:29.6]} 10.
Bh4 {[%clk 0:02:15.7]} 10... Rb8 {[%clk 0:02:23.9]} 11. a5 {[%clk 0:02:11.1]}
11... Re8 {[%clk 0:02:15.2]} 12. Qe2 {[%clk 0:02:04.3]} 12... b5 {[%clk
0:01:57.5]} 13. axb6 {[%clk 0:02:03.4]} 13... axb6 {[%clk 0:01:58.4]} 14. Ba2
{[%clk 0:01:58.3]} 14... b5 {[%clk 0:01:57.4]} 15. Qe3 {[%clk 0:01:47.5]} 15...
exd4 {[%clk 0:01:44.2]} 16. Nxd4 {[%clk 0:01:47.3]} 16... Nc5 {[%clk 0:01:38.4]}
17. Rae1 {[%clk 0:01:39.5]} 17... b4 {[%clk 0:01:36.5]} 18. Nce2 {[%clk
0:01:35.5]} 18... Ncxe4 {[%clk 0:01:26.9]} 19. f3 {[%clk 0:01:11]} 19... Nc5
{[%clk 0:01:09.3]} 20. Bxf6 {[%clk 0:01:09.4]} 20... gxf6 {[%clk 0:01:07.9]} 21.
Qxh6 {[%clk 0:01:08.1]} 21... d5 {[%clk 0:00:55.1]} 22. Nf4 {[%clk 0:00:55.1]}
22... Nd7 {[%clk 0:00:19.7]} 23. Nh5 {[%clk 0:00:52.5]} 23... Bf8 {[%clk
0:00:17.8]} 24. Rxe8 {[%clk 0:00:51.8]} 1-0

[Event "*** SCC Grand Prix: Titled Tuesday Blitz"]
[Site "Chess.com"]
[Date "2020.06.23"]
[Round "1"]
[White "Boninknights"]
[Black "topotun"]
[Result "0-1"]
[WhiteElo "2330"]
[BlackElo "2658"]
[TimeControl "180+1"]
[EndTime "10:06:01 PDT"]
[Termination "topotun won by resignation"]

1. d4 {[%clk 0:02:59.5]} 1... Nf6 {[%clk 0:02:55.6]} 2. Nf3 {[%clk 0:02:58.5]}
2... c5 {[%clk 0:02:53.1]} 3. d5 {[%clk 0:02:56.1]} 3... d6 {[%clk 0:02:49.9]}
4. c4 {[%clk 0:02:55.1]} 4... e6 {[%clk 0:02:46.6]} 5. Nc3 {[%clk 0:02:54.3]}
5... exd5 {[%clk 0:02:41.9]} 6. cxd5 {[%clk 0:02:53.2]} 6... g6 {[%clk
0:02:36.7]} 7. Bg5 {[%clk 0:02:51]} 7... h6 {[%clk 0:02:27.1]} 8. Bh4 {[%clk
0:02:48.9]} 8... Bg7 {[%clk 0:02:21.4]} 9. Nd2 {[%clk 0:02:44]} 9... O-O {[%clk
0:02:12.4]} 10. e4 {[%clk 0:02:39.9]} 10... Re8 {[%clk 0:02:05.8]} 11. Be2
{[%clk 0:02:38.9]} 11... Na6 {[%clk 0:01:58.4]} 12. O-O {[%clk 0:02:35.3]} 12...
g5 {[%clk 0:01:51.1]} 13. Bg3 {[%clk 0:02:31.7]} 13... Nc7 {[%clk 0:01:41.3]}
14. a4 {[%clk 0:02:28.5]} 14... b6 {[%clk 0:01:33.8]} 15. f4 {[%clk 0:02:24.7]}
15... gxf4 {[%clk 0:01:25.9]} 16. Bxf4 {[%clk 0:02:23.3]} 16... Ba6 {[%clk
0:01:20.1]} 17. Bxa6 {[%clk 0:01:58.1]} 17... Nxa6 {[%clk 0:01:19.7]} 18. Qf3
{[%clk 0:01:42.8]} 18... Nb4 {[%clk 0:01:19.4]} 19. Rac1 {[%clk 0:01:37.8]}
19... Qe7 {[%clk 0:01:08.8]} 20. Nc4 {[%clk 0:01:21.3]} 20... Nxe4 {[%clk
0:01:06.6]} 21. Rce1 {[%clk 0:01:15.6]} 21... f5 {[%clk 0:01:06.5]} 22. Nxd6
{[%clk 0:01:11.4]} 22... Bd4+ {[%clk 0:01:04.1]} 23. Kh1 {[%clk 0:01:05.2]}
23... Nf2+ {[%clk 0:01:02.5]} 24. Qxf2 {[%clk 0:01:00]} 24... Bxf2 {[%clk
0:01:02.6]} 25. Rxe7 {[%clk 0:00:59.1]} 25... Rxe7 {[%clk 0:01:03.5]} 26. Nxf5
{[%clk 0:00:57]} 26... Re1 {[%clk 0:01:03.3]} 27. Rxe1 {[%clk 0:00:54.9]} 27...
Bxe1 {[%clk 0:01:04.2]} 28. Nxh6+ {[%clk 0:00:52.5]} 28... Kh7 {[%clk
0:01:04.4]} 29. Nf5 {[%clk 0:00:50.1]} 29... Bxc3 {[%clk 0:01:04.2]} 30. bxc3
{[%clk 0:00:48]} 30... Nxd5 {[%clk 0:01:04.6]} 31. Bd2 {[%clk 0:00:43.2]} 31...
Re8 {[%clk 0:01:04.3]} 32. g4 {[%clk 0:00:41]} 32... Re2 {[%clk 0:01:03.8]} 33.
Bg5 {[%clk 0:00:39.2]} 33... Nxc3 {[%clk 0:01:02.7]} 0-1